bitfinex/quotes_BTCUSD_20250730
["timestamp","ask_amount","ask_price","bid_price","bid_amount"]
[1753911767307,0.3781,117230.0,117220.0,0.2538173]
[1753911769872,0.3781,117230.0,117220.0,0.2516573]
[1753911776343,0.3781,117230.0,117220.0,0.2536073]
[1753911780360,0.3803746,117230.0,117200.0,0.0188]
[1753911780581,0.0386325,117220.0,117210.0,0.2500073]
[1753911782371,0.0386325,117220.0,117210.0,0.1193273]
[1753911782580,0.0386325,117220.0,117210.0,0.1203273]
[1753911782783,0.0386325,117220.0,117210.0,0.2520073]
[1753911782996,0.06440418,117220.0,117210.0,0.2520073]
[1753911784452,0.06440418,117220.0,117210.0,0.2539573]
[1753911784453,0.40440418,117220.0,117210.0,0.2539573]
[1753911784662,0.44931456,117220.0,117210.0,0.2539573]
[1753911785028,0.40227168,117220.0,117210.0,0.2539573]
[1753911786447,0.45357168,117220.0,117210.0,0.2539573]
[1753911789249,5.47916297,117220.0,117210.0,0.13364]
[1753911789553,5.47916282,117220.0,117210.0,0.13364]
[1753911789748,5.52187709,117220.0,117210.0,0.13364]
[1753911789983,5.60635439,117220.0,117210.0,0.13364]
[1753911790188,5.60635425,117220.0,117210.0,0.13364]
[1753911790599,5.60635468,117220.0,117210.0,0.13364]
[1753911790806,0.59782394,117220.0,117210.0,0.13364]
[1753911791038,5.93907394,117220.0,117210.0,0.13364]
[1753911794926,5.93054334,117220.0,117210.0,0.13364]
[1753911798171,5.93054334,117220.0,117210.0,0.16448]
[1753911800800,5.84606604,117220.0,117210.0,0.16448]
[1753911801679,5.83753551,117220.0,117210.0,0.16448]
[1753911802755,5.84606611,117220.0,117210.0,0.16448]
[1753911802971,5.83753551,117220.0,117210.0,0.16448]
[1753911804221,5.84606604,117220.0,117210.0,0.16448]
[1753911804435,5.93054334,117220.0,117210.0,0.16448]
[1753911806705,6.06214334,117220.0,117210.0,0.16448]
[1753911807508,6.05361281,117220.0,117210.0,0.16448]
[1753911807915,6.05361281,117220.0,117210.0,0.13364]
[1753911808424,6.07067401,117220.0,117210.0,0.13364]
[1753911808667,6.06214334,117220.0,117210.0,0.002]
[1753911808898,6.06214334,117220.0,117210.0,0.03188]
[1753911810278,6.07866502,117220.0,117210.0,0.03088]
[1753911810690,6.07966502,117220.0,117210.0,0.02988]
[1753911810884,6.08066502,117220.0,117210.0,0.02988]
[1753911812775,5.3783,117210.0,117200.0,0.1316]
[1753911812972,5.4627773,117210.0,117200.0,0.16148]
[1753911813173,5.4627773,117210.0,117200.0,0.03308]
[1753911813402,5.4627773,117210.0,117200.0,0.03503]
[1753911813403,5.7842273,117210.0,117200.0,0.03503]
[1753911814014,0.7842273,117210.0,117200.0,0.03503]
[1753911814171,5.7842273,117210.0,117200.0,0.03503]
[1753911815916,5.69975,117210.0,117200.0,0.03503]
[1753911817312,5.69975,117210.0,117190.0,0.02988]
[1753911817313,0.0395,117200.0,117190.0,0.02988]
[1753911817510,5.34,117190.0,117180.0,0.03308]
[1753911817710,5.3597,117190.0,117180.0,0.03503]
[1753911817913,0.365656,117190.0,117180.0,0.05343]
[1753911818116,5.365656,117190.0,117180.0,0.05343]
[1753911818376,5.025656,117190.0,117180.0,0.03503]
[1753911819100,5.025656,117190.0,117180.0,0.03703]
[1753911819742,5.025656,117190.0,117180.0,0.1588073]
[1753911819937,0.34125,117200.0,117190.0,0.0373]
[1753911820152,0.34125,117200.0,117190.0,1.02523314]
[1753911820153,0.26708,117200.0,117190.0,1.02523314]
[1753911820370,0.26334,117200.0,117190.0,0.54848622]
[1753911820578,0.26334,117200.0,117190.0,0.24240232]
[1753911820793,0.26334,117200.0,117190.0,0.54848622]
[1753911820994,0.26334,117200.0,117190.0,0.65067842]
[1753911821709,0.26334,117200.0,117190.0,0.65767842]
[1753911822751,0.26334,117200.0,117190.0,0.58953242]
[1753911824482,0.26334,117200.0,117190.0,0.76019544]
[1753911825789,0.26334,117200.0,117190.0,0.81079401]
[1753911826411,0.26334,117200.0,117190.0,0.40251791]
[1753911826635,0.26334,117200.0,117190.0,0.81079401]
[1753911830393,0.26334,117200.0,117190.0,0.83643801]
[1753911837706,0.26334,117200.0,117190.0,0.83323801]
[1753911839562,0.26334,117200.0,117190.0,0.42496191]
[1753911839764,0.26334,117200.0,117190.0,0.83323801]
[1753911840769,0.26334,117200.0,117190.0,0.73117366]
[1753911843888,0.26334,117200.0,117190.0,1.03738541]
[1753911844302,0.26334,117200.0,117190.0,1.06238541]
[1753911844455,0.26334,117200.0,117190.0,1.03738541]
[1753911844660,0.26334,117200.0,117190.0,1.06238541]
[1753911847706,0.26334,117200.0,117190.0,1.19382541]
[1753911850451,0.26659,117200.0,117190.0,1.19382541]
[1753911850653,0.26659,117200.0,117190.0,0.88761366]
[1753911851475,0.26859,117200.0,117190.0,0.88761366]
[1753911852018,0.26659,117200.0,117190.0,0.88761366]
[1753911852528,0.26659,117200.0,117190.0,0.88757366]
[1753911854094,0.26659,117200.0,117190.0,0.87415431]
[1753911855089,0.26859,117200.0,117190.0,0.87415431]
[1753911855767,0.26659,117200.0,117190.0,0.87415431]
[1753911857005,0.26659,117200.0,117190.0,0.56794256]
[1753911857214,0.26859,117200.0,117190.0,0.87415431]
[1753911857615,0.0623477,117200.0,117190.0,0.87415431]
[1753911859971,0.0922477,117200.0,117190.0,0.68827816]
[1753911860200,0.0922477,117200.0,117190.0,0.13457032]
[1753911860382,0.1316477,117200.0,117190.0,0.26593032]
[1753911860582,0.1316477,117200.0,117190.0,0.57214207]
[1753911860757,0.1118477,117200.0,117190.0,0.57214207]
[1753911860964,0.1118477,117200.0,117190.0,0.58067522]
[1753911861172,0.1118477,117200.0,117190.0,0.57214207]
[1753911862116,0.1118477,117200.0,117190.0,0.58920829]
[1753911862327,0.1118477,117200.0,117190.0,0.57214207]
[1753911862478,0.1118477,117200.0,117190.0,0.58067522]
[1753911862701,0.1118477,117200.0,117190.0,0.58920822]
[1753911862907,0.1118477,117200.0,117190.0,0.75987131]
[1753911863112,0.1118477,117200.0,117190.0,0.76840424]
[1753911863314,0.1118477,117200.0,117190.0,0.76840431]
[1753911863517,0.1118477,117200.0,117190.0,0.77693724]
[1753911863711,0.1118477,117200.0,117190.0,0.76840431]
[1753911863982,0.1118477,117200.0,117190.0,0.77693724]
[1753911864177,0.1118477,117200.0,117190.0,0.77693717]
[1753911865183,0.1118477,117200.0,117190.0,0.81824995]
[1753911865411,0.1118477,117200.0,117190.0,0.80971717]
[1753911866015,0.0570977,117200.0,117190.0,1.16396156]
[1753911866177,0.00309,117210.0,117200.0,0.21592983]
[1753911866380,0.00309,117210.0,117200.0,1.09413503]
[1753911866591,0.00309,117210.0,117200.0,1.10266694]
[1753911867434,0.00309,117210.0,117200.0,1.10466694]
[1753911867858,0.00309,117210.0,117200.0,1.10566694]
[1753911868909,0.00309,117210.0,117200.0,0.90141931]
[1753911870273,0.05118,117220.0,117210.0,0.21367733]
[1753911870643,0.03579,117220.0,117210.0,0.89876168]
[1753911871114,0.03579,117220.0,117210.0,0.8902305]
[1753911871261,0.03579,117220.0,117210.0,0.8705305]
[1753911871465,0.03579,117220.0,117210.0,0.88006168]
[1753911871663,0.00521,117220.0,117210.0,0.89916168]
[1753911872109,0.00521,117220.0,117210.0,0.8906305]
[1753911872309,0.00521,117220.0,117210.0,0.89916168]
[1753911872483,0.00521,117220.0,117210.0,0.48245463]
[1753911872683,0.00521,117220.0,117210.0,0.8906305]
[1753911872908,0.00521,117220.0,117210.0,0.89916168]
[1753911873352,0.00521,117220.0,117210.0,0.89816168]
[1753911873706,0.00521,117220.0,117210.0,0.90116168]
[1753911874528,0.00309,117220.0,117210.0,0.92096168]
[1753911874728,0.05227,117230.0,117220.0,0.17061934]
[1753911875076,0.05439,117230.0,117220.0,0.83600333]
[1753911875414,0.05439,117230.0,117220.0,0.84453422]
[1753911875843,0.05439,117230.0,117220.0,0.85345235]
[1753911876157,0.05439,117230.0,117220.0,0.86198324]
[1753911876741,0.05439,117230.0,117220.0,0.85345242]
[1753911876948,0.05439,117230.0,117220.0,0.85445249]
[1753911878757,0.05439,117230.0,117220.0,0.86298331]
[1753911879355,0.05439,117230.0,117220.0,0.86298338]
[1753911879557,0.03579,117230.0,117220.0,0.86298338]
[1753911879977,0.05619,117230.0,117220.0,0.86298338]
[1753911880433,0.05619,117230.0,117220.0,0.8715142]
[1753911880637,0.05619,117230.0,117220.0,0.85445249]
[1753911880882,0.05619,117230.0,117220.0,0.44627662]
[1753911881096,0.05619,117230.0,117220.0,0.85445249]
[1753911881588,0.05619,117230.0,117220.0,0.84592153]
[1753911881791,0.05619,117230.0,117220.0,0.85445249]
[1753911882227,0.05619,117230.0,117220.0,0.84592153]
[1753911882433,0.05619,117230.0,117220.0,0.85445249]
[1753911882837,0.05619,117230.0,117220.0,0.84592153]
[1753911883248,0.05619,117230.0,117220.0,0.67530219]
[1753911884137,0.05619,117230.0,117220.0,0.26712632]
[1753911884336,0.05619,117230.0,117220.0,0.67530219]
[1753911885104,0.05619,117230.0,117220.0,0.68383315]
[1753911885297,0.05619,117230.0,117220.0,0.67530219]
[1753911885905,0.03579,117230.0,117220.0,0.67530219]
[1753911886234,0.00521,117230.0,117220.0,0.87345249]
[1753911886437,0.00521,117230.0,117220.0,0.85445249]
[1753911886642,0.02521,117230.0,117220.0,0.84592153]
[1753911886845,0.05579,117230.0,117220.0,0.85445249]
[1753911887392,0.05579,117230.0,117220.0,0.84592153]
[1753911887625,0.02309,117230.0,117220.0,0.84592153]
[1753911887829,0.05397,117240.0,117230.0,0.01744902]
[1753911888047,0.05609,117240.0,117230.0,0.64347474]
[1753911888255,0.05609,117240.0,117230.0,0.67422219]
[1753911888932,0.05609,117240.0,117230.0,0.57210158]
[1753911889797,0.05709,117240.0,117230.0,0.57210158]
[1753911890441,0.05709,117240.0,117230.0,0.57310158]
[1753911890624,0.05609,117240.0,117230.0,0.57310158]
[1753911894599,0.02551,117240.0,117230.0,0.57310158]
[1753911895020,0.05609,117240.0,117230.0,0.57310158]
[1753911898110,0.05609,117240.0,117230.0,0.26704632]
[1753911898323,0.05609,117240.0,117230.0,0.57310158]
[1753911900809,0.0193,117250.0,117230.0,0.7522366]
[1753911901065,0.02175,117250.0,117240.0,0.71186419]
[1753911901291,0.00305,117260.0,117250.0,0.18802471]
[1753911901505,0.08292346,117270.0,117250.0,0.18802471]
[1753911901506,0.06687346,117270.0,117250.0,0.78537303]
[1753911901718,0.06687346,117270.0,117260.0,0.42160256]
[1753911901926,0.06887346,117270.0,117260.0,0.42160256]
[1753911902133,0.06887346,117270.0,117260.0,0.1155473]
[1753911902351,0.06887346,117270.0,117260.0,0.44018359]
[1753911902563,0.06887346,117270.0,117260.0,0.43805158]
[1753911902986,0.06887346,117270.0,117260.0,0.13199632]
[1753911903199,0.06887346,117270.0,117260.0,0.13412833]
[1753911903774,0.06887346,117270.0,117260.0,0.13512833]
[1753911904423,0.06887346,117270.0,117260.0,0.5430225]
[1753911904647,0.06887346,117270.0,117260.0,0.54089049]
[1753911906655,0.06887346,117270.0,117260.0,0.71145163]
[1753911907620,0.06887346,117270.0,117260.0,0.71997968]
[1753911908228,0.06887346,117270.0,117260.0,0.71145163]
[1753911908636,0.06887346,117270.0,117260.0,0.71997968]
[1753911908839,0.06887346,117270.0,117260.0,0.71145163]
[1753911909969,0.06887346,117270.0,117260.0,0.71997968]
[1753911910608,0.06887346,117270.0,117260.0,0.71145163]
[1753911910807,0.03772346,117270.0,117260.0,0.71997968]
[1753911911034,0.03572346,117270.0,117260.0,0.72850759]
[1753911911236,0.01522346,117270.0,117260.0,0.75863542]
[1753911911830,0.01522346,117270.0,117260.0,0.88971542]
[1753911912125,0.01522346,117270.0,117260.0,0.86811542]
[1753911912788,0.01522346,117270.0,117260.0,0.89734318]
[1753911913879,0.03672346,117270.0,117260.0,0.88517087]
[1753911914367,0.03872346,117270.0,117260.0,0.87664318]
[1753911915326,0.03872346,117270.0,117260.0,0.88517087]
[1753911915530,0.03872346,117270.0,117260.0,0.87664318]
[1753911916142,0.03872346,117270.0,117260.0,0.86811542]
[1753911916351,0.42937346,117270.0,117260.0,0.2155573]
[1753911916562,0.13231081,117270.0,117260.0,0.2155173]
[1753911916759,0.42937346,117270.0,117260.0,0.0844773]
[1753911917052,0.42937346,117270.0,117260.0,0.2122673]
[1753911917679,0.08937346,117270.0,117260.0,0.2122673]
[1753911917890,0.42937346,117270.0,117260.0,0.2122673]
[1753911918119,5.42937346,117270.0,117260.0,0.2122673]
[1753911918322,5.42937346,117270.0,117260.0,0.001]
[1753911918533,5.51385076,117270.0,117260.0,0.13204]
[1753911918942,5.42937346,117270.0,117260.0,0.13204]
[1753911927675,0.03567346,117270.0,117260.0,0.2494073]
[1753911927886,0.01430596,117270.0,117260.0,0.66051147]
[1753911928087,0.01217346,117270.0,117260.0,0.2725173]
[1753911928514,0.0232325,117280.0,117260.0,0.2725173]
[1753911928721,0.0232325,117280.0,117270.0,0.0844773]
[1753911928924,0.0285425,117280.0,117270.0,0.1173673]
[1753911929626,0.54054931,117280.0,117270.0,0.1173673]
[1753911929819,0.53841681,117280.0,117270.0,0.1173673]
[1753911929976,0.53741681,117280.0,117270.0,0.1173673]
[1753911930194,0.53841681,117280.0,117270.0,0.1173673]
[1753911930583,0.53523681,117280.0,117270.0,0.1173673]
[1753911930778,0.03523681,117280.0,117270.0,0.69580807]
[1753911930990,0.01200681,117280.0,117270.0,0.69580807]
[1753911931595,0.01200681,117280.0,117270.0,0.71560807]
[1753911932157,0.01100681,117280.0,117270.0,0.71560807]
[1753911932408,0.0764025,117290.0,117270.0,0.71760807]
[1753911932596,0.0764025,117290.0,117280.0,0.13136]
[1753911932782,0.0785325,117290.0,117280.0,0.2158373]
[1753911932988,0.0785325,117290.0,117280.0,0.2466173]
[1753911934066,0.0785325,117290.0,117280.0,0.2476173]
[1753911935525,0.08931449,117290.0,117280.0,0.2486173]
[1753911937204,0.03331449,117290.0,117280.0,0.2507273]
[1753911937400,0.01078199,117290.0,117280.0,0.85236353]
[1753911937600,0.3605,117300.0,117280.0,0.85236353]
[1753911937830,0.5205,117300.0,117290.0,0.1152573]
[1753911937963,0.5205,117300.0,117290.0,0.1173673]
[1753911939010,0.5215,117300.0,117290.0,0.1173673]
[1753911939206,0.52681,117300.0,117290.0,0.1173673]
[1753911939522,0.5579,117300.0,117290.0,0.1173673]
[1753911939723,0.56841988,117300.0,117290.0,0.1173673]
[1753911940315,0.56741988,117300.0,117290.0,0.1173673]
[1753911941898,0.56741988,117300.0,117290.0,0.1183673]
[1753911943495,0.56741988,117300.0,117290.0,0.1162573]
[1753911943902,0.56741988,117300.0,117290.0,0.1172573]
[1753911946116,0.06741988,117300.0,117290.0,0.0864773]
[1753911947726,0.59639512,117300.0,117290.0,0.0864773]
[1753911947936,5.43639512,117300.0,117290.0,0.13328]
[1753911948361,5.43639512,117300.0,117290.0,0.002]
[1753911948564,0.34,117290.0,117250.0,0.03078]
[1753911948776,0.0402,117270.0,117260.0,0.13124]
[1753911948969,0.0402,117260.0,117250.0,0.0844773]
[1753911949226,0.0787325,117260.0,117250.0,0.2157173]
[1753911950170,0.07082457,117260.0,117250.0,0.2157173]
[1753911958600,0.21438992,117270.0,117250.0,0.2157173]
[1753911958805,0.00206,117260.0,117250.0,0.2499873]
[1753911960709,0.34206,117260.0,117250.0,0.2499873]
[1753911961726,0.84206,117260.0,117250.0,0.2499873]
[1753911961917,0.34206,117260.0,117250.0,0.2499873]
[1753911963279,0.50206,117260.0,117250.0,0.2499873]
[1753911972840,0.5,117260.0,117250.0,0.2704873]
[1753911973033,0.0198,117270.0,117250.0,0.2904873]
[1753911973172,0.0198,117270.0,117250.0,0.2581773]
[1753911973368,0.0198,117270.0,117260.0,0.03231]
[1753911973630,0.02186,117270.0,117260.0,0.03427]
[1753911974520,0.02286,117270.0,117260.0,0.03427]
[1753911975375,0.02386,117270.0,117260.0,0.03427]
[1753911980584,0.00406,117270.0,117260.0,0.03427]
[1753911980885,0.002,117270.0,117260.0,0.03427]
[1753911981020,0.002,117270.0,117260.0,0.05507]
[1753911981644,0.002,117270.0,117260.0,0.1596473]
[1753911981830,0.002,117270.0,117260.0,0.1395473]
[1753911982034,0.002,117270.0,117260.0,0.56754147]
[1753911982480,0.002,117270.0,117260.0,0.74663066]
[1753911982682,0.002,117270.0,117260.0,0.73810261]
[1753911982924,0.001,117270.0,117260.0,0.73810261]
[1753911984070,5.0,117280.0,117260.0,0.69720261]
[1753911984276,5.0,117280.0,117270.0,0.2890673]
[1753911984450,5.0,117280.0,117270.0,0.2910273]
[1753911985450,0.001,117280.0,117270.0,0.2910273]
[1753911985836,0.002,117280.0,117270.0,0.2910273]
[1753911986218,0.001,117280.0,117270.0,0.2910273]
[1753911986673,0.002,117280.0,117270.0,0.2910273]
[1753911987828,0.002,117280.0,117270.0,0.69892147]
[1753911988151,0.002,117280.0,117270.0,0.86946807]
[1753911988739,0.002,117280.0,117270.0,0.8779954]
[1753911988987,0.002,117280.0,117270.0,0.86946807]
[1753911989211,0.002,117280.0,117270.0,0.8779954]
[1753911989428,0.002,117280.0,117270.0,0.90397167]
[1753911989632,0.002,117280.0,117270.0,0.9124987]
[1753911989841,0.002,117280.0,117270.0,0.92102552]
[1753911990045,0.001,117280.0,117270.0,0.92102552]
[1753911990265,0.01051988,117300.0,117280.0,0.0398]
[1753911990473,0.01051988,117300.0,117290.0,0.2573073]
[1753911990693,0.3404,117310.0,117300.0,0.0192]
[1753911990909,0.3404,117310.0,117300.0,0.1036773]
[1753911991114,0.35270044,117310.0,117300.0,0.1056673]
[1753911991330,0.35270044,117310.0,117300.0,0.1389273]
[1753911991748,0.35270044,117310.0,117300.0,0.1379273]
[1753911992167,0.35270044,117310.0,117300.0,0.1369273]
[1753911992375,0.35570044,117310.0,117300.0,0.1369273]
[1753911992974,0.35670044,117310.0,117300.0,0.1369273]
[1753911993387,0.35370044,117310.0,117300.0,0.1369273]
[1753911993595,0.35270044,117310.0,117300.0,0.1369273]
[1753911993764,0.35370044,117310.0,117300.0,0.1369273]
[1753911994182,0.35172044,117310.0,117300.0,0.1369273]
[1753911994988,0.35172044,117310.0,117300.0,0.56392147]
[1753911994989,0.01172044,117310.0,117300.0,0.56392147]
[1753911996490,0.01072044,117310.0,117300.0,0.56492147]
[1753911998410,0.01072044,117310.0,117300.0,0.73542445]
[1753911999023,0.01072044,117310.0,117300.0,0.74394959]
[1753911999234,0.01072044,117310.0,117300.0,0.73542445]
[1753911999700,0.01072044,117310.0,117300.0,0.1570273]
[1753911999914,0.01072044,117310.0,117300.0,0.56492147]
[1753912000708,0.01072044,117310.0,117300.0,0.57344661]
[1753912000923,0.01072044,117310.0,117300.0,0.56492147]
[1753912001334,0.01072044,117310.0,117300.0,0.73542445]
[1753912001675,0.01072044,117310.0,117300.0,0.74394952]
[1753912001900,0.01072044,117310.0,117300.0,0.74394959]
[1753912002185,0.01072044,117310.0,117300.0,0.73542445]
[1753912002820,0.01072044,117310.0,117300.0,0.74394959]
[1753912003389,0.01072044,117310.0,117300.0,0.75247466]
[1753912004623,0.0004,117310.0,117300.0,0.78697317]
[1753912005309,0.0004,117310.0,117300.0,0.78597317]
[1753912005620,0.0004,117310.0,117300.0,0.81282298]
[1753912006154,0.0004,117310.0,117300.0,0.81182298]
[1753912006993,0.0004,117310.0,117300.0,0.83982298]
[1753912007400,0.0004,117310.0,117300.0,0.43192881]
[1753912007660,0.0004,117310.0,117300.0,0.84182298]
[1753912010538,0.0004,117310.0,117300.0,1.20682298]
[1753912011198,0.0004,117310.0,117300.0,1.18182298]
[1753912011385,0.0004,117310.0,117300.0,1.20682298]
[1753912014176,0.0004,117310.0,117300.0,1.33778298]
[1753912015414,0.0004,117310.0,117300.0,1.33578298]
[1753912015623,0.0004,117310.0,117300.0,1.33278298]
[1753912015825,0.0004,117310.0,117300.0,1.33678298]
[1753912016036,0.0004,117310.0,117300.0,1.76059715]
[1753912016196,0.0004,117310.0,117300.0,1.35270298]
[1753912018027,0.0004,117310.0,117300.0,1.61690298]
[1753912020564,0.0004,117310.0,117300.0,2.02479715]
[1753912023154,0.0004,117310.0,117300.0,2.03517854]
[1753912025430,0.0004,117320.0,117310.0,0.60350984]
[1753912025634,0.0004,117320.0,117310.0,1.94035548]
[1753912025839,0.0004,117320.0,117310.0,1.97257548]
[1753912027367,0.0004,117320.0,117310.0,1.97757548]
[1753912028036,0.0004,117320.0,117310.0,1.97257548]
[1753912028245,0.0004,117320.0,117310.0,1.97957548]
[1753912031003,0.0004,117320.0,117310.0,1.98299048]
[1753912035632,0.0004,117320.0,117310.0,2.18783048]
[1753912038548,0.04011068,117350.0,117340.0,0.99390488]
[1753912038752,0.04209068,117350.0,117340.0,1.20934218]
[1753912039088,0.04209068,117350.0,117340.0,1.22944218]
[1753912039727,0.04209068,117350.0,117340.0,1.25505318]
[1753912039934,0.04209068,117350.0,117340.0,1.28530318]
[1753912040321,0.03186,117350.0,117340.0,1.28530318]
[1753912040537,0.00238,117350.0,117340.0,1.28530318]
[1753912041005,0.00238,117350.0,117340.0,1.28827318]
[1753912041366,0.07559,117350.0,117340.0,0.80325908]
[1753912041570,0.07559,117350.0,117340.0,0.81178081]
[1753912041777,0.07559,117350.0,117340.0,1.21967498]
[1753912041973,0.08606006,117350.0,117340.0,1.19406398]
[1753912047607,0.08363006,117350.0,117340.0,1.19406398]
[1753912048934,0.06263006,117350.0,117340.0,1.19406398]
[1753912049350,0.08283006,117350.0,117340.0,1.19406398]
[1753912050540,0.06263006,117350.0,117340.0,1.19406398]
[1753912051602,0.06263006,117350.0,117340.0,1.22371398]
[1753912051843,0.03315006,117350.0,117340.0,1.22371398]
[1753912053890,0.01087006,117350.0,117340.0,1.22874398]
[1753912054082,0.01087006,117350.0,117340.0,1.24824398]
[1753912054231,0.01087006,117350.0,117340.0,1.22874398]
[1753912054459,0.01087006,117350.0,117340.0,1.24824398]
[1753912054867,0.01087006,117350.0,117340.0,1.22874398]
[1753912055252,0.01285006,117350.0,117340.0,1.22874398]
[1753912056290,0.01285006,117350.0,117340.0,0.82084981]
[1753912056490,0.01285006,117350.0,117340.0,1.22874398]
[1753912057172,0.01087006,117350.0,117340.0,1.22874398]
[1753912062962,0.01087006,117350.0,117340.0,1.43164579]
[1753912064677,0.0004,117350.0,117340.0,1.45204579]
[1753912064875,0.0004,117350.0,117340.0,1.47224579]
[1753912065091,0.0004,117350.0,117340.0,1.45204579]
[1753912067564,0.02168,117350.0,117340.0,1.43164579]
[1753912068316,0.00238,117350.0,117340.0,1.43164579]
[1753912068538,0.0004,117350.0,117340.0,1.43164579]
[1753912072833,0.021,117360.0,117350.0,0.0430129]
[1753912073041,0.021,117360.0,117350.0,0.75769781]
[1753912073316,0.021,117360.0,117350.0,0.74704615]
[1753912073515,0.021,117360.0,117350.0,0.77261011]
[1753912073719,0.021,117360.0,117350.0,0.77261025]
[1753912073920,0.021,117360.0,117350.0,0.78113133]
[1753912074076,0.021,117360.0,117350.0,0.76408874]
[1753912074284,0.021,117360.0,117350.0,0.76707874]
[1753912074490,0.021,117360.0,117350.0,0.77559989]
[1753912074704,0.03183885,117360.0,117350.0,0.76707874]
[1753912075022,0.03183885,117360.0,117350.0,0.77559989]
[1753912075799,0.03183885,117360.0,117350.0,0.78412097]
[1753912077183,0.03183885,117360.0,117350.0,0.78404097]
[1753912077620,0.03183885,117360.0,117350.0,0.78404053]
[1753912077823,0.03183885,117360.0,117350.0,0.77551953]
[1753912078028,0.03183885,117360.0,117350.0,0.76699845]
[1753912078231,0.03183885,117360.0,117350.0,0.77551945]
[1753912078437,0.03183885,117360.0,117350.0,0.77760953]
[1753912078787,0.03183885,117360.0,117350.0,0.47221154]
[1753912078991,0.03183885,117360.0,117350.0,0.77760945]
[1753912079194,0.03183885,117360.0,117350.0,0.77760953]
[1753912079395,0.03183885,117360.0,117350.0,0.78613053]
[1753912079765,0.03183885,117360.0,117350.0,0.77760953]
[1753912080022,0.03183885,117360.0,117350.0,0.78613053]
[1753912080396,0.03183885,117360.0,117350.0,0.77760953]
[1753912081668,0.03183885,117360.0,117350.0,0.45516931]
[1753912081816,0.03183885,117360.0,117350.0,0.76908852]
[1753912082023,0.03183885,117360.0,117350.0,0.77760967]
[1753912082387,0.03183885,117360.0,117350.0,0.78613075]
[1753912082591,0.03183885,117360.0,117350.0,0.77760938]
[1753912082766,0.03183885,117360.0,117350.0,0.78613038]
[1753912083143,0.03183885,117360.0,117350.0,0.77760938]
[1753912083363,0.03183885,117360.0,117350.0,0.78613038]
[1753912083561,0.03183885,117360.0,117350.0,0.77760938]
[1753912083774,0.03183885,117360.0,117350.0,0.45516945]
[1753912083967,0.03183885,117360.0,117350.0,0.77760967]
[1753912084624,0.03183885,117360.0,117350.0,0.76908866]
[1753912085172,0.03183885,117360.0,117350.0,0.77760981]
[1753912085379,0.03183885,117360.0,117350.0,0.78613089]
[1753912085590,0.03183885,117360.0,117350.0,0.77760938]
[1753912086226,0.03183885,117360.0,117350.0,0.79710938]
[1753912086438,0.03183885,117360.0,117350.0,0.78006744]
[1753912086646,0.03183885,117360.0,117350.0,0.79710966]
[1753912086856,0.03183885,117360.0,117350.0,0.78858852]
[1753912087060,0.03183885,117360.0,117350.0,0.78858859]
[1753912087264,0.03183885,117360.0,117350.0,0.78858852]
[1753912087676,0.03183885,117360.0,117350.0,0.78858859]
[1753912087856,0.03183885,117360.0,117350.0,0.79710967]
[1753912088066,0.03183885,117360.0,117350.0,0.78006744]
[1753912088278,0.03183885,117360.0,117350.0,0.79710966]
[1753912088519,0.03183885,117360.0,117350.0,0.79710974]
[1753912089138,0.03183885,117360.0,117350.0,0.80563074]
[1753912089350,0.03183885,117360.0,117350.0,0.80563089]
[1753912089555,0.03183885,117360.0,117350.0,0.79710981]
[1753912089765,0.03183885,117360.0,117350.0,0.48319067]
[1753912090009,0.03183885,117360.0,117350.0,0.79710981]
[1753912090252,0.03183885,117360.0,117350.0,0.80563089]
[1753912093339,0.03183885,117360.0,117350.0,0.80563038]
[1753912093556,0.03183885,117360.0,117350.0,0.79710938]
[1753912094751,0.03183885,117360.0,117350.0,0.80563038]
[1753912096216,0.03183885,117360.0,117350.0,0.79710938]
[1753912097777,0.05283885,117360.0,117350.0,0.40339665]
[1753912097976,0.05283885,117360.0,117350.0,0.2167973]
[1753912098511,0.05283885,117360.0,117350.0,0.1157273]
[1753912098713,0.05283885,117360.0,117350.0,0.25017767]
[1753912098919,0.05283885,117360.0,117350.0,0.2480473]
[1753912099133,0.05283885,117360.0,117350.0,0.2512773]
[1753912099697,0.03183885,117360.0,117350.0,0.2512773]
[1753912101727,0.03183885,117360.0,117350.0,0.2480473]
[1753912101925,0.03183885,117360.0,117350.0,0.2167973]
[1753912101926,0.05213885,117360.0,117350.0,0.2167973]
[1753912102273,0.03183885,117360.0,117350.0,0.2480473]
[1753912102501,0.03183885,117360.0,117350.0,0.2512773]
[1753912104970,0.03183885,117360.0,117350.0,0.2533673]
[1753912105168,0.03183885,117360.0,117350.0,0.2512773]
[1753912105986,0.03183885,117360.0,117350.0,0.2534373]
[1753912111085,0.03183885,117360.0,117350.0,0.1157273]
[1753912111360,0.03183885,117360.0,117350.0,0.2531273]
[1753912113636,0.03183885,117360.0,117350.0,0.1157273]
[1753912113836,0.05203885,117360.0,117350.0,0.2477673]
[1753912114053,0.05203885,117360.0,117350.0,0.2509273]
[1753912114280,0.03183885,117360.0,117350.0,0.2530873]
[1753912117844,0.01083885,117360.0,117350.0,0.2737873]
[1753912118058,0.01083885,117360.0,117350.0,0.57918529]
[1753912118659,0.01083885,117360.0,117350.0,0.74961562]
[1753912118853,0.01083885,117360.0,117350.0,0.57918529]
[1753912119483,0.01083885,117360.0,117350.0,0.2737873]
[1753912119685,0.01083885,117360.0,117350.0,0.74961562]
[1753912120260,0.01083885,117360.0,117350.0,0.44421763]
[1753912120471,0.01083885,117360.0,117350.0,0.74961562]
[1753912123502,0.01083885,117360.0,117350.0,0.76991562]
[1753912126050,0.01083885,117360.0,117350.0,0.74961562]
[1753912127718,0.01083885,117360.0,117350.0,0.44421763]
[1753912128529,0.01083885,117360.0,117350.0,0.74961562]
[1753912129748,0.01083885,117360.0,117350.0,0.44421763]
[1753912130356,0.03083885,117360.0,117350.0,0.44421763]
[1753912130791,0.03083885,117360.0,117350.0,0.2737873]
[1753912131968,0.03083885,117360.0,117350.0,0.44421763]
[1753912134004,0.03083885,117360.0,117350.0,0.2737873]
[1753912134641,0.01083885,117360.0,117350.0,0.2737873]
[1753912138562,0.02983885,117360.0,117350.0,0.2737873]
[1753912138880,0.01083885,117360.0,117350.0,0.44421763]
[1753912141130,0.01083885,117360.0,117350.0,0.74961562]
[1753912142057,0.01083885,117360.0,117350.0,0.77051562]
[1753912142447,0.01083885,117360.0,117350.0,0.74961562]
[1753912142960,0.01083885,117360.0,117350.0,0.27560763]
[1753912143106,0.02973885,117360.0,117350.0,0.2498273]
[1753912144322,0.02973885,117360.0,117350.0,0.2687273]
[1753912147701,0.01083885,117360.0,117350.0,0.77327706]
[1753912148969,0.01083885,117360.0,117350.0,0.78179843]
[1753912149438,0.01083885,117360.0,117350.0,0.77327706]